bitfinex/quotes_SOLUSD_20220226
["timestamp","ask_amount","ask_price","bid_price","bid_amount"]
[1645842746897,45.06408579,93.457,93.41,16.0539]
[1645842747496,1.79367403,93.528,93.411,106.7]
[1645842747695,23.2328,93.528,93.411,106.7]
[1645842747895,1.69633192,93.527,93.411,120.55724617]
[1645842748098,1.69633192,93.527,93.431,106.7]
[1645842748599,59.83141516,93.526,93.433,106.7]
[1645842748799,1.83661726,93.525,93.433,106.7]
[1645842748998,1.83661726,93.525,93.451,106.7]
[1645842749199,1.83661726,93.525,93.451,19.97014988]
[1645842749698,1.83661726,93.525,93.446,106.7]
[1645842749898,1.83661726,93.525,93.42,15.77292427]
[1645842749899,1.83661726,93.525,93.42,12.91]
[1645842750100,4.36898602,93.524,93.41,12.91]
[1645842750317,4.36898602,93.524,93.43,16.0506]
[1645842750515,6.66190997,93.523,93.43,16.0506]
[1645842750717,8.65297208,93.523,93.43,16.0506]
[1645842750918,2.38290997,93.522,93.43,16.0506]
[1645842752018,1.99106211,93.523,93.43,16.0506]
[1645842752217,2.38290997,93.522,93.43,16.0506]
[1645842752618,1.99106211,93.523,93.43,16.0506]
[1645842755022,2.38290997,93.522,93.43,16.0506]
[1645842759026,2.38290997,93.522,74.07,0.72679573]
[1645842759027,21.77654321,93.521,93.4,16.0541]
[1645842759226,18.93050263,93.52,93.4,16.0541]
[1645842759531,2.02824557,93.519,93.4,16.0541]
[1645842759726,48.89109181,93.499,93.4,16.0541]
[1645842759926,2.13060762,93.498,93.4,16.0541]
[1645842760526,2.38290997,93.497,93.4,16.0541]
[1645842760728,4.20520905,93.497,93.4,16.0541]
[1645842761232,2.38290997,93.496,93.4,16.0541]
[1645842761429,1.82229908,93.497,93.4,16.0541]
[1645842762128,2.38290997,93.496,93.4,16.0541]
[1645842763931,1.82229908,93.497,93.4,16.0541]
[1645842764133,2.38290997,93.496,93.4,16.0541]
[1645842764533,1.82229908,93.497,93.4,16.0541]
[1645842764832,1.82229908,93.497,93.364,106.7]
[1645842764833,6.66290997,93.496,93.39,5.05925094]
[1645842765031,4.28,93.496,93.39,5.05925094]
[1645842765230,4.28,93.496,93.366,110.98]
[1645842765430,2.38290997,93.495,93.366,110.98]
[1645842765631,4.281,93.494,93.366,113.84292427]
[1645842766034,2.38290997,93.493,93.38,16.0593]
[1645842766238,16.0597,93.49,93.352,2.86292427]
[1645842766433,16.0597,93.49,93.332,4.28]
[1645842766434,45.04557811,93.478,93.332,4.28]
[1645842766635,2.00747579,93.475,93.309,4.282]
[1645842766834,106.7,93.476,93.309,4.282]
[1645842766835,48.78958252,93.458,93.309,4.282]
[1645842767038,1.87890865,93.448,93.308,21.31723365]
[1645842767236,4.283,93.447,93.308,21.31723365]
[1645842767435,32.57236666,93.447,93.308,21.31723365]
[1645842767634,2.1066383,93.445,93.308,21.31723365]
[1645842767835,12.91,93.43,93.309,4.283]
[1645842768035,16.0711,93.42,93.31,16.0687]
[1645842768235,1.98340329,93.419,93.31,16.0687]
[1645842768838,24.46867051,93.419,93.31,16.0687]
[1645842769035,1.92518236,93.418,93.31,16.0687]
[1645842769235,4.284,93.417,93.31,16.0687]
[1645842769437,4.284,93.417,93.292,4.284]
[1645842769438,16.0732,93.41,93.292,4.284]
[1645842769636,6.05824586,93.409,93.28,16.074]
[1645842769835,2.07983616,93.408,93.28,16.074]
[1645842770036,27.80046729,93.408,93.28,16.074]
[1645842770236,22.61480584,93.407,93.28,16.074]
[1645842770435,16.0762,93.39,93.281,25.18951973]
[1645842770636,60.25349814,93.388,93.281,25.18951973]
[1645842770837,1.66532043,93.387,93.281,25.18951973]
[1645842771441,1.66532043,93.387,93.28,16.074]
[1645842771637,16.0784,93.38,93.26,16.0793]
[1645842771842,108.84212015,93.379,93.26,16.0793]
[1645842772138,1.9416843,93.369,93.239,113.0]
[1645842772336,44.46847178,93.367,93.24,22.21636637]
[1645842772538,1.67498344,93.366,93.24,22.21636637]
[1645842773039,1.67498344,93.366,93.241,130.18204136]
[1645842773237,1.67498344,93.366,93.241,164.27108106]
[1645842773436,1.67498344,93.366,93.242,15.60260077]
[1645842773641,1.67498344,93.366,93.243,106.7]
[1645842773839,1.67498344,93.366,93.243,15.60260077]
[1645842774043,1.67498344,93.366,93.261,5.54896066]
[1645842774842,1.67498344,93.366,93.262,106.7]
[1645842775044,1.67498344,93.366,93.262,109.56292427]
[1645842775242,1.67498344,93.366,93.262,106.7]
[1645842775442,1.67498344,93.366,93.263,2.86292427]
[1645842775641,1.67498344,93.366,93.27,16.0776]
[1645842777045,2.38290997,93.365,93.27,16.0776]
[1645842777346,4.32133656,93.365,93.261,5.54896066]
[1645842777746,1.93842659,93.365,93.261,5.54896066]
[1645842778548,4.32133656,93.365,93.261,5.54896066]
[1645842779046,2.01702475,93.359,93.261,5.54896066]
[1645842779747,2.01702475,93.359,93.233,12.7396765]
[1645842779945,2.29610584,93.349,93.23,16.0826]
[1645842780147,24.8514,93.348,93.23,16.0826]
[1645842780346,1.82512188,93.347,93.23,16.0826]
[1645842780546,1.89127938,93.346,93.23,16.0826]
[1645842780747,1.8252809,93.345,93.231,25.8890495]
[1645842781145,1.8252809,93.345,93.24,16.0828]
[1645842781748,106.7,93.339,93.217,4.285]
[1645842781950,4.288,93.338,93.217,4.285]
[1645842782147,1.6664728,93.336,93.217,4.285]
[1645842782349,4.288,93.335,93.217,4.285]
[1645842782648,169.56141156,93.329,93.218,21.97896918]
[1645842782849,16.0895,93.32,93.218,21.97896918]
[1645842783048,1.69513988,93.319,93.218,21.97896918]
[1645842783248,1.73687054,93.317,93.217,4.285]
[1645842783450,12.91,93.31,93.181,113.0]
[1645842783649,4.288,93.316,93.19,16.0922]
[1645842784072,2.38290997,93.315,93.19,16.0922]
[1645842784274,53.50953405,93.314,93.191,23.37997793]
[1645842784474,1.71162452,93.313,93.191,23.37997793]
[1645842785271,16.0905,93.31,93.2,16.0888]
[1645842785473,16.0905,93.31,93.191,23.37997793]
[1645842785474,6.23251415,93.309,93.16,76.5481]
[1645842785671,32.0110518,93.309,93.16,76.5481]
[1645842785871,27.61189179,93.308,93.16,76.5481]
[1645842786070,6.38497691,93.307,93.16,76.5481]
[1645842786272,55.88664901,93.307,93.16,76.5481]
[1645842786470,15.70037712,93.29,93.18,16.0933]
[1645842786671,48.08163811,93.289,93.181,4.98658473]
[1645842786873,1.86249279,93.288,93.181,4.98658473]
[1645842787673,1.86249279,93.288,93.19,16.0911]
[1645842789377,2.37874663,93.287,93.17,16.095]
[1645842789577,6.46673376,93.286,93.17,16.095]
[1645842789775,2.05225491,93.279,93.17,16.095]
[1645842789976,4.29,93.278,93.17,16.095]
[1645842790277,4.29,93.278,93.168,27.29044365]
[1645842790278,1.97007712,93.276,93.168,27.29044365]
[1645842790475,44.94662492,93.269,93.168,27.29044365]
[1645842790677,6.59142132,93.268,93.168,27.29044365]
[1645842790876,27.68562768,93.268,93.14,53.6498]
[1645842791076,27.68562768,93.268,93.133,46.4738]
[1645842791077,27.76888006,93.267,93.15,16.0981]
[1645842791276,5.99603881,93.266,93.15,16.0981]
[1645842791478,2.05001518,93.259,93.133,46.4738]
[1645842791684,4.292,93.258,93.133,46.4738]
[1645842791878,4.292,93.258,93.134,21.86613951]
[1645842792086,4.13436986,93.257,93.134,21.86613951]
[1645842792283,4.292,93.256,93.114,11.16685044]
[1645842792485,16.1021,93.24,93.114,11.16685044]
[1645842792684,12.91,93.23,93.097,113.0]
[1645842793087,2.27340564,93.229,93.104,11.16749054]
[1645842793288,1.73226419,93.227,93.105,20.63212372]
[1645842793486,1.73226419,93.227,93.13,16.1019]
[1645842793685,47.6028,93.239,93.131,7.13320331]
[1645842793886,1.89948687,93.238,93.131,7.13320331]
[1645842794084,1.89948687,93.238,93.131,9.99612758]
[1645842794687,56.59681479,93.237,93.131,9.99612758]
[1645842794885,1.79593781,93.236,93.15,16.0973]
[1645842795087,1.79593781,93.236,93.151,20.63212372]
[1645842797893,23.72729779,93.249,93.161,106.7]
[1645842798091,1.8238303,93.287,93.161,106.7]
[1645842798292,1.8238303,93.287,93.171,106.7]
[1645842798589,1.99390213,93.301,93.18,12.91]
[1645842798791,1.9467372,93.299,93.182,7.13320331]
[1645842799290,1.9467372,93.299,93.201,20.63212372]
[1645842799690,108.6467372,93.299,93.2,16.0883]
[1645842799892,106.7,93.297,93.164,2.86292427]
[1645842800090,106.7,93.295,93.164,2.86292427]
[1645842800290,106.7,93.289,93.154,26.75342427]
[1645842800492,108.60153919,93.287,93.154,26.75342427]
[1645842800691,2.03330957,93.286,93.155,25.21711275]
[1645842800893,2.09128554,93.284,93.155,25.21711275]
[1645842801093,106.7,93.269,93.155,25.21711275]
[1645842801392,1.98962089,93.266,93.155,25.21711275]
[1645842801591,4.291,93.265,93.155,25.21711275]
[1645842801791,1.98962089,93.266,93.155,25.21711275]
[1645842801792,4.36836752,93.266,93.155,28.08003702]
[1645842802395,4.291,93.265,93.155,25.21711275]
[1645842802594,1.87785981,93.259,93.155,25.21711275]
[1645842802995,1.75014907,93.258,93.15,16.097]
[1645842803196,4.1288957,93.258,93.12,16.1022]
[1645842803397,2.19566963,93.255,93.12,16.1022]
[1645842803595,4.292,93.254,93.12,16.1022]
[1645842803895,1.73954858,93.252,93.121,2.86292427]
[1645842804096,16.1018,93.25,93.13,16.1018]
[1645842804297,1.67410011,93.249,93.13,16.1018]
[1645842804495,1.67410011,93.249,93.131,2.86292427]
[1645842805196,1.67410011,93.249,93.14,16.1007]
[1645842805497,23.4125918,93.248,93.141,2.86292427]
[1645842805696,2.06593884,93.238,93.141,2.86292427]
[1645842805897,4.292,93.237,93.1,2.86292427]
[1645842806095,106.7,93.236,93.1,2.86292427]
[1645842806294,106.7,93.234,93.1,2.86292427]
[1645842806495,57.83594243,93.232,93.12,16.1039]
[1645842806695,106.7,93.23,93.121,0.45864135]
[1645842806896,1.95679981,93.229,93.12,16.1039]
[1645842807096,106.7,93.219,93.12,16.1039]
[1645842807296,2.13092846,93.218,93.1,2.86292427]
[1645842807501,106.7,93.216,93.1,2.86292427]
[1645842807700,1.92944549,93.215,93.1,18.97042427]
[1645842807901,106.7,93.214,93.1,40.64649677]
[1645842808100,1.95267469,93.213,93.1,40.64649677]
[1645842808301,25.5401667,93.213,93.1,40.64649677]
[1645842808503,16.1085,93.21,93.1,43.50942104]
[1645842808701,2.27695012,93.209,93.1,43.50942104]
[1645842808901,53.21358825,93.209,93.1,43.50942104]
[1645842809102,27.64337577,93.208,93.1,43.50942104]
[1645842809302,2.201203,93.207,93.1,43.50942104]
[1645842809503,27.59767443,93.207,93.1,43.50942104]
[1645842809802,1.69128624,93.206,93.1,43.50942104]
[1645842810405,1.69128624,93.206,93.1,40.64649677]
[1645842810604,2.10930888,93.205,93.1,40.64649677]
[1645842811009,25.39647143,93.204,93.1,40.64649677]
[1645842811207,1.8966633,93.203,93.1,43.50942104]
[1645842811605,45.88137296,93.202,93.1,40.64649677]
[1645842811804,61.90082241,93.201,93.1,40.64649677]
[1645842812005,1.86649662,93.2,93.1,40.64649677]
[1645842812206,25.02791669,93.2,93.1,40.64649677]
[1645842812406,2.08779297,93.199,93.1,40.64649677]
[1645842812607,106.7,93.198,93.1,16.1075]
[1645842812812,2.18882164,93.197,93.09,2.86292427]
[1645842813006,4.293,93.196,93.09,2.86292427]
[1645842813206,6.32272647,93.196,93.09,2.86292427]
[1645842813407,23.16142007,93.195,93.09,2.86292427]
[1645842813606,6.45887875,93.194,93.09,30.23085277]
[1645842814014,24.93732796,93.193,93.09,30.23085277]
[1645842814311,2.19345989,93.191,93.09,27.3679285]
[1645842814511,2.21893706,93.189,93.09,27.3679285]
[1645842814914,2.21893706,93.189,93.09,43.4772285]
[1645842815116,2.21893706,93.189,93.091,2.86292427]
[1645842815511,2.21893706,93.189,93.09,43.4772285]
[1645842815914,55.33684089,93.187,93.09,43.4772285]
[1645842816112,1.77524932,93.186,93.09,43.4772285]
[1645842816812,2.37874663,93.185,93.09,43.4772285]
[1645842817212,25.09869952,93.185,93.09,43.4772285]
[1645842817414,2.05644697,93.184,93.091,2.86292427]
[1645842817831,2.05644697,93.184,93.09,43.4772285]
[1645842818231,2.05644697,93.184,93.091,2.86292427]
[1645842818433,2.05644697,93.184,93.09,43.4772285]
[1645842818631,4.4351936,93.184,93.09,43.4772285]
[1645842819632,2.05644697,93.184,93.09,43.4772285]
[1645842819832,25.39647143,93.183,93.09,43.4772285]
[1645842820032,1.85632052,93.182,93.09,43.4772285]
[1645842822234,27.25279195,93.182,93.09,43.4772285]
[1645842822434,1.96879269,93.181,93.09,42.9772285]
[1645842825437,27.36526412,93.181,93.09,42.9772285]
[1645842825639,1.98109112,93.18,93.09,42.9772285]
[1645842826239,2.37874663,93.179,93.09,42.9772285]
[1645842826439,4.62427877,93.179,93.09,26.8679285]
[1645842826842,2.24553214,93.179,93.09,26.8679285]
[1645842829141,2.24553214,93.179,93.091,2.86292427]
[1645842829943,2.1653413,93.186,93.091,2.86292427]
[1645842830145,2.1653413,93.186,93.11,16.106]
[1645842832244,2.1653413,93.186,93.104,0.39739853]
[1645842832544,2.19324306,93.184,93.104,0.39739853]
[1645842832949,2.19324306,93.184,93.09,12.91]
[1645842833344,2.19324306,93.184,93.08,16.1092]
[1645842833345,2.37874663,93.183,93.08,16.1092]
[1645842834046,2.37874663,93.183,93.081,20.00928126]
[1645842834246,2.37874663,93.183,93.081,19.50928126]
[1645842835748,4.29661784,93.183,93.081,19.50928126]
[1645842836149,2.37837682,93.182,93.081,19.50928126]
[1645842836750,18.29995289,93.181,93.081,19.50928126]
[1645842836949,2.08300938,93.18,93.081,19.50928126]
[1645842837153,4.4613862,93.18,93.081,19.50928126]
[1645842837349,26.86980477,93.179,93.081,19.50928126]
[1645842837550,1.75314933,93.178,93.081,19.50928126]
[1645842837749,4.13152615,93.178,93.081,19.50928126]
[1645842837952,2.37837682,93.177,93.081,19.50928126]
[1645842838351,1.94628338,93.183,93.081,19.50928126]
[1645842839354,2.37837682,93.182,93.081,19.50928126]
[1645842840656,26.86980477,93.181,93.081,19.50928126]
[1645842840853,1.94263102,93.18,93.081,19.50928126]
[1645842841053,4.31197183,93.18,93.081,19.50928126]
[1645842841254,1.76749163,93.179,93.081,19.50928126]
[1645842841455,4.13683244,93.179,93.081,19.50928126]
[1645842841655,108.46749163,93.179,93.08,29.0192]
[1645842841853,4.09096969,93.178,93.06,12.91]
[1645842842254,106.7,93.176,93.06,12.91]
[1645842842554,1.706826,93.175,93.061,27.35343853]
[1645842842755,46.59294603,93.173,93.061,27.35343853]
[1645842842954,1.97286026,93.172,93.07,16.1125]
[1645842843356,2.20155346,93.17,93.07,16.1125]
[1645842844358,2.20155346,93.17,93.08,12.91]
[1645842844658,2.20155346,93.17,93.09,16.1084]
[1645842845059,2.20155346,93.17,93.091,2.86292427]
[1645842845959,2.20155346,93.17,93.09,16.1084]
[1645842846463,2.20155346,93.17,93.091,2.86292427]
[1645842847458,23.7206,93.171,93.091,2.86292427]
[1645842847861,23.7206,93.171,93.09,29.0184]
[1645842848061,1.89973027,93.17,93.09,29.0184]
[1645842849461,14.11651854,93.169,93.09,16.1084]
[1645842849661,1.92417282,93.168,93.09,16.1084]
[1645842850163,1.7558502,93.167,93.09,16.1084]
[1645842854374,28.25647143,93.168,93.09,16.1084]
[1645842854576,28.25647143,93.182,93.091,2.86292427]
[1645842854774,1.87196989,93.207,93.11,16.1043]
[1645842854977,1.69624074,93.221,93.12,12.91]
[1645842855174,14.7784364,93.238,93.12,12.91]
[1645842855376,1.80219502,93.231,93.121,7.15492427]
[1645842855576,48.01182874,93.23,93.122,24.49051426]
[1645842855779,2.27239272,93.229,93.123,4.292]
[1645842855979,2.27239272,93.229,93.122,27.35343853]
[1645842856276,2.17379641,93.228,93.123,110.992]
[1645842856479,46.55373252,93.228,93.132,2.42381637]
[1645842856678,2.13180156,93.3,93.141,111.7]
[1645842856877,2.13180156,93.3,93.181,5.0]
[1645842857079,2.13180156,93.3,93.14,12.91]
[1645842857080,1.92818141,93.338,93.191,5.0]
[1645842857278,1.92818141,93.338,93.201,111.7]
[1645842857477,2.18110967,93.336,93.211,134.46203044]
[1645842857677,54.15669354,93.337,93.212,2.61989787]
[1645842857877,54.15669354,93.337,93.213,110.988]
[1645842858080,54.15669354,93.337,93.214,1.95357164]
[1645842858281,2.02557303,93.336,93.215,4.288]
[1645842858577,1.88525819,93.335,93.22,12.91]
[1645842858780,2.25530649,93.334,93.22,12.91]
[1645842859005,22.17500068,93.334,93.22,12.91]
[1645842859201,1.78756645,93.333,93.22,12.91]
[1645842859400,1.78756645,93.333,93.24,16.0791]
[1645842859601,19.91969419,93.332,93.24,16.0791]
[1645842859803,19.91969419,93.332,93.226,4.00329659]
[1645842859804,2.02638438,93.331,93.22,12.91]
[1645842860002,4.288,93.33,93.193,4.288]
[1645842860302,2.06385896,93.329,93.2,12.91]
[1645842860501,6.16821241,93.328,93.2,12.91]
[1645842860701,26.0879066,93.328,93.201,22.21688695]
[1645842860907,2.17147425,93.327,93.201,22.21688695]
[1645842861101,1.73730385,93.326,93.202,7.15092427]
[1645842861303,25.94499804,93.326,93.202,2.86292427]
[1645842861504,1.664506,93.325,93.22,16.0867]
[1645842861702,1.75048186,93.324,93.221,7.41136435]
[1645842861902,46.13544047,93.323,93.221,7.41136435]
[1645842862101,1.73078951,93.322,93.221,7.41136435]
[1645842863504,1.73078951,93.322,93.23,16.0847]
[1645842868007,2.09102569,93.322,93.23,16.0847]
[1645842870008,2.09102569,93.322,93.23,18.94762427]
[1645842870407,46.13544047,93.323,93.231,106.7]
[1645842870609,46.13544047,93.323,93.25,16.081]
[1645842870807,46.13544047,93.323,93.251,19.35396268]
[1645842871010,46.13544047,93.323,93.251,22.21688695]
[1645842871410,46.13544047,93.323,93.252,2.86292427]
[1645842871813,46.13544047,93.323,93.26,16.0796]
[1645842872212,1.82023197,93.322,93.26,16.0796]
[1645842875119,46.13544047,93.323,93.26,16.0796]
[1645842875316,2.08921218,93.322,93.251,19.35396268]
[1645842875517,46.13544047,93.323,93.251,19.35396268]
[1645842876121,1.80051658,93.348,93.251,19.35396268]
[1645842876318,92.80036821,93.382,93.251,19.35396268]
[1645842876319,2.06223525,93.377,93.261,106.7]
[1645842876720,2.06223525,93.377,93.263,106.7]
[1645842877119,49.9085651,93.376,93.265,106.7]
[1645842877419,2.29253124,93.375,93.271,106.7]
[1645842877622,2.29253124,93.375,93.29,16.0743]
[1645842877821,2.29253124,93.375,93.291,19.35396268]
[1645842878021,2.29253124,93.375,93.291,22.21688695]
[1645842878422,1.99204474,93.375,93.292,2.86292427]
[1645842878624,49.9085651,93.376,93.292,109.56292427]
[1645842878923,49.9085651,93.376,93.293,2.86292427]
[1645842879124,2.07234224,93.395,93.294,106.7]
[1645842879326,48.1389,93.418,93.301,106.7]
[1645842879327,2.12928636,93.417,93.301,106.7]
[1645842879725,2.12928636,93.417,93.302,2.86292427]
[1645842880224,44.56880313,93.416,93.302,2.86292427]
[1645842880426,2.23880407,93.415,93.302,2.86292427]
[1645842880626,2.23880407,93.415,93.321,7.41136435]
[1645842882626,2.23880407,93.415,93.33,16.0678]
[1645842883028,2.23880407,93.415,93.331,106.7]
[1645842883327,44.56880313,93.416,93.331,109.56292427]
[1645842883529,44.56880313,93.416,93.341,106.7]
[1645842883727,44.56880313,93.416,93.351,19.35396268]
[1645842883928,1.96342741,93.415,93.351,19.35396268]
[1645842885752,1.96342741,93.415,93.35,16.0638]
[1645842885950,1.96342741,93.415,93.318,15.68441449]
[1645842885951,1.96342741,93.415,93.33,16.0676]
[1645842886950,1.96342741,93.415,93.33,37.15187117]
[1645842888652,1.96342741,93.415,93.331,2.86292427]
[1645842888851,1.96342741,93.415,93.33,37.15187117]
[1645842895063,1.96342741,93.415,93.331,2.86292427]
[1645842896662,1.96342741,93.415,93.341,106.7]
[1645842896864,1.98709821,93.426,93.341,106.7]
[1645842897061,1.92884578,93.456,93.343,106.7]
[1645842897261,50.25584578,93.456,93.343,106.7]
[1645842897463,1.90852136,93.455,93.345,106.7]
[1645842897862,60.72415822,93.454,93.347,106.7]
[1645842898161,60.72415822,93.454,93.346,24.22839462]
[1645842898162,2.06548908,93.453,93.37,16.0611]
[1645842899464,2.06548908,93.453,93.371,106.7]
[1645842899662,2.06548908,93.453,93.38,16.0588]
[1645842899863,2.06548908,93.453,93.383,106.7]
[1645842900463,2.06548908,93.453,93.384,2.86292427]
[1645842900864,1.70063808,93.474,93.391,106.7]
[1645842901065,15.658,93.519,93.391,106.7]
[1645842901066,1.92425892,93.495,93.391,106.7]
[1645842901263,1.92425892,93.495,93.385,15.68441449]
[1645842901264,1.92425892,93.495,93.393,106.7]
[1645842901664,1.92425892,93.495,93.395,106.7]
[1645842901864,54.48010237,93.494,93.395,106.7]
[1645842902066,1.98845122,93.493,93.398,19.15716755]
[1645842902565,1.98845122,93.493,93.41,16.0535]
[1645842902966,1.98845122,93.493,93.394,2.86292427]
[1645842903167,2.37705878,93.492,93.377,106.7]
[1645842903367,4.28226583,93.492,93.377,106.7]
[1645842903768,2.37705878,93.491,93.37,12.91]
[1645842903968,4.51495103,93.491,93.374,21.13770606]
[1645842904369,2.37705878,93.49,93.374,21.13770606]
[1645842904570,18.43665878,93.49,93.374,21.13770606]
[1645842904771,2.22991337,93.489,93.374,21.13770606]
[1645842904972,4.60697215,93.489,93.374,21.13770606]
[1645842905170,2.37705878,93.488,93.374,21.13770606]
[1645842905473,4.281,93.487,93.374,21.13770606]
[1645842905970,2.37705878,93.486,93.374,21.13770606]
[1645842906170,16.0616,93.48,93.37,16.0595]
[1645842906373,28.76355148,93.479,93.37,16.0595]
[1645842906569,1.73380828,93.478,93.37,16.0595]
[1645842906769,4.11086706,93.478,93.35,16.0629]
[1645842906970,4.282,93.477,93.35,16.0629]
[1645842907170,16.0629,93.47,93.351,20.25837899]
[1645842907371,6.56771364,93.469,93.351,20.25837899]
[1645842907570,113.26771364,93.469,93.321,2.86292427]
[1645842907770,2.12388415,93.468,93.321,2.86292427]
[1645842907974,110.982,93.467,93.321,109.56292427]
[1645842908173,1.96595606,93.466,93.321,125.86152427]
[1645842908372,4.282,93.465,93.321,125.86152427]
[1645842908575,16.0671,93.45,93.322,20.67680626]
[1645842908773,107.3460682,93.449,93.322,20.67680626]
[1645842908975,1.97852274,93.448,93.322,20.67680626]
[1645842909274,4.35558152,93.448,93.323,24.82529669]
[1645842909472,2.37705878,93.447,93.323,24.82529669]
[1645842910674,2.37705878,93.447,93.324,106.7]
[1645842910874,2.37705878,93.447,93.324,109.56292427]
[1645842911278,2.37705878,93.447,93.331,106.7]
[1645842913680,2.37705878,93.447,93.33,16.0662]
[1645842916983,2.37705878,93.447,93.331,106.7]
[1645842917782,2.37705878,93.447,93.332,2.86292427]
[1645842917982,2.37705878,93.447,93.331,106.7]
[1645842919407,2.37705878,93.447,93.33,16.0662]
[1645842921009,16.0681,93.44,93.33,16.0662]
[1645842921209,2.01254558,93.439,93.33,16.0662]
[1645842921409,4.38960436,93.439,93.33,16.0662]
[1645842921606,2.37705878,93.438,93.33,16.0662]
[1645842922309,24.864,93.437,93.33,16.0662]
[1645842922508,1.865082,93.436,93.33,16.0662]
[1645842922807,4.24214078,93.436,93.33,16.0662]
[1645842923007,58.39589209,93.434,93.33,16.0662]
[1645842923209,2.18432374,93.433,93.331,109.56292427]
[1645842923408,2.18432374,93.433,93.343,106.7]
[1645842924009,2.18432374,93.433,93.344,2.86292427]
[1645842924510,2.18432374,93.433,93.35,16.0627]
[1645842926013,58.39589209,93.434,93.351,106.7]
[1645842926217,58.39589209,93.434,93.361,106.7]
[1645842926416,58.39589209,93.434,93.363,106.7]
[1645842927520,58.39589209,93.434,93.37,16.0592]
[1645842932624,4.282,93.487,93.37,16.0592]
[1645842932825,2.26423279,93.477,93.371,155.11830104]
[1645842933024,1.66631014,93.498,93.401,106.7]
[1645842933424,46.6889,93.499,93.402,46.80544042]
[1645842933624,53.08828568,93.497,93.403,113.95539152]
[1645842933826,53.08828568,93.497,93.404,4.28]
[1645842934032,53.08828568,93.497,93.422,19.50993551]
[1645842934229,2.00186946,93.496,93.423,4.279]
[1645842934429,2.00186946,93.496,93.422,19.50993551]
[1645842934833,2.00186946,93.496,93.41,12.91]
[1645842935031,2.37056896,93.495,93.401,4.279]
[1645842935232,1.73444245,93.493,93.39,53.5052]
[1645842935432,1.73444245,93.493,93.39,82.8097]
[1645842935631,2.37056896,93.492,93.39,82.8097]
[1645842935831,2.37056896,93.492,93.391,19.45950337]
[1645842936032,2.37056896,93.492,93.4,16.0546]
[1645842938233,2.37056896,93.492,93.382,15.7502]
[1645842938434,2.37056896,93.492,93.38,16.0581]
[1645842938834,121.87008116,93.49,93.354,19.76974675]
[1645842939036,1.89717038,93.489,93.354,4.281]
[1645842939334,16.0648,93.46,93.355,20.94849437]
[1645842939534,51.41512591,93.459,93.355,20.94849437]
[1645842939735,2.01143022,93.458,93.356,106.7]
[1645842940034,4.38202401,93.458,93.33,33.628]
[1645842940238,2.25341474,93.456,93.32,4.282]
[1645842940437,4.283,93.455,93.316,106.7]
[1645842940637,48.38550657,93.455,93.32,12.91]
[1645842940843,1.89850443,93.453,93.32,12.91]
[1645842941040,2.06689469,93.449,93.321,25.57050559]
[1645842941241,4.283,93.448,93.321,25.57050559]
[1645842941440,23.73691767,93.448,93.322,4.283]
[1645842941647,2.09910492,93.447,93.322,4.283]
[1645842941844,4.46969871,93.447,93.32,16.0684]
[1645842942043,1.97878996,93.439,93.32,16.0684]
[1645842942247,4.283,93.438,93.32,16.0684]
[1645842942544,6.65359379,93.438,93.32,16.0684]
[1645842942843,86.40726996,93.437,93.32,16.0684]
[1645842943043,2.07723206,93.436,93.321,24.43983684]
[1645842943244,4.44782585,93.436,93.321,24.43983684]
[1645842943444,16.0707,93.43,93.321,24.43983684]
[1645842943645,2.02141281,93.429,93.321,24.43983684]
[1645842943844,4.3920066,93.429,93.321,24.43983684]
[1645842944043,2.37059379,93.428,93.321,24.43983684]
[1645842944644,58.11181286,93.419,93.321,24.43983684]
[1645842944843,2.20094916,93.418,93.321,24.43983684]
[1645842945044,4.57154295,93.418,93.321,24.43983684]
[1645842945260,2.37059379,93.417,93.321,24.43983684]
[1645842946264,2.20094916,93.418,93.322,109.56292427]
[1645842946466,2.20094916,93.418,93.323,4.284]
[1645842946664,2.20094916,93.418,93.324,106.7]
[1645842946867,2.20094916,93.418,93.325,4.283]
[1645842947264,2.20094916,93.418,93.326,106.7]
[1645842947563,2.20094916,93.418,93.33,28.9768]
[1645842947764,56.08447762,93.419,93.331,110.983]
[1645842947963,56.08447762,93.419,93.331,106.7]
[1645842948163,56.08447762,93.419,93.333,106.7]
[1645842948364,56.08447762,93.419,93.334,4.533]
[1645842948563,56.08447762,93.419,93.335,106.7]